Cogmind - Beta 13 @@@ ROGUE MODE // 2024.04.20 @ 21:59:17 Player: cptwinky Result: Destroyed by B-75 Beast with Magnetic Acceleration Cannon Performance ------------- Evolutions (2) 1000 Regions Visited (12) 2400 Robots Destroyed (230) 1150 Value Destroyed (7872) 7872 Prototype IDs (28) 560 Alien Tech Used (0) 0 Bonus (3765) 3765 TOTAL SCORE: 16747 Bonus ------- High Alert Combat Kills 1338 Follower Combat Kills 864 Entered Garrisons 600 Used RIF Installer 1000 Friendly Fire -37 Cogmind --------- Core Integrity 0/550 Matter 162/300 Energy 100/100 System Corruption 1% Temperature Cool (0) Movement Core (150) Ox2 Location -8/Garrison Parts ------- > --- POWER (1) -------- (None) > --- PROPULSION (3) --- (None) > --- UTILITY (5) ------ Improved Targeting Computer Core Analyzer Improved Medium Armor Plating > --- WEAPON (2) ------- (None) > --- INVENTORY (5) ---- Authchip [R/Combat] Relay Coupler [Grunt] (26) Long-range Tractor Beam Enhanced Autogun Improved Plasma Cutter Peak State ------------ > --- POWER ------------ Cooled Ion Engine > --- PROPULSION ------- Improved Treads Improved Treads Improved Treads > --- UTILITY ---------- Huge Storage Unit Improved Targeting Computer Core Analyzer Improved Medium Armor Plating Advanced Shield Generator > --- WEAPON ----------- Enhanced Autogun Enhanced Autogun > --- INVENTORY -------- Cooled Ion Engine Large Matter Pod Improved Medium Armor Plating Hardlight Generator Authchip [R/Combat] Authchip [R/Combat] Relay Coupler [NC] Relay Coupler [NC] Relay Coupler [Grunt] Relay Coupler [Sentry] Component Analysis Suite Long-range Tractor Beam Heavy Phase Cannon Enhanced Autogun Enhanced Autogun Precision Assault Rifle Precision Assault Rifle Precision Assault Rifle Hypervelocity Gauss Cannon Improved Grenade Launcher Missile Launcher Improved Datajack Improved Datajack Improved Plasma Cutter Heavy Mace [Rating: 43] Favorites ----------- Power Cooled Ion Engine Engine Cooled Ion Engine Propulsion Light Treads Treads Light Treads Leg Aluminum Leg Utility Improved Targeting Computer Device Weapon Cycler Storage Huge Storage Unit Processor Improved Targeting Computer Hackware System Shield Protection Hardened Light Armor Plating Weapon Autogun Energy Gun Medium Laser Energy Cannon EM Pulse Cannon Ballistic Gun Autogun Launcher Heavy Rocket Launcher Special Weapon Mining Laser Impact Weapon Heavy Mace Slashing Weapon Makeshift Axe Special Melee Weapon Datajack Build | -11 -10 -10 -9 -9 -9 -8 -8 -8 -8 -8 -8 -8 ------- Run | Yrd Mat Min Mat Min Exi Min Mat Gar Mat Gar Mat Gar Slots Evolved 4 | . . . 2 . . . 2 . . . . . Power . | . . . . . . . . . . . . . Propulsion 1 | . . . 1 . . . . . . . . . Utility 3 | . . . 1 . . . 2 . . . . . Weapon . | . . . . . . . . . . . . . Parts Attached 242 | 2 19 7 33 4 2 11 49 21 33 27 10 24 Power 10 | . 2 . 2 1 . . 1 . 2 1 . 1 Engine 10 | . 2 . 2 1 . . 1 . 2 1 . 1 Core . | . . . . . . . . . . . . . Reactor . | . . . . . . . . . . . . . Propulsion 45 | 2 2 . 11 . . 3 8 5 4 6 4 . Treads 45 | 2 2 . 11 . . 3 8 5 4 6 4 . Leg . | . . . . . . . . . . . . . Wheel . | . . . . . . . . . . . . . Hover . | . . . . . . . . . . . . . Flight . | . . . . . . . . . . . . . Utility 55 | . 4 1 8 1 . 2 13 2 14 4 2 4 Device 17 | . 1 . . 1 . . 5 2 6 . 1 1 Storage 4 | . 1 1 1 . . . 1 . . . . . Processor 3 | . . . . . . . 1 . . 2 . . Hackware 6 | . . . . . . . 1 . 4 . . 1 Protection 25 | . 2 . 7 . . 2 5 . 4 2 1 2 Artifact . | . . . . . . . . . . . . . Weapon 132 | . 11 6 12 2 2 6 27 14 13 16 4 19 Energy Gun 3 | . 2 . 1 . . . . . . . . . Energy Cannon 2 | . . . . . . . 2 . . . . . Ballistic Gun 70 | . 4 3 7 1 1 3 16 8 9 7 2 9 Ballistic Cannon . | . . . . . . . . . . . . . Launcher 30 | . 3 3 4 . . 3 4 2 1 4 1 5 Special Weapon 6 | . 2 . . . . . . 2 . 2 . . Impact Weapon 7 | . . . . 1 . . 1 . . 2 1 2 Slashing Weapon 1 | . . . . . . . . 1 . . . . Piercing Weapon . | . . . . . . . . . . . . . Special Melee Weapon 13 | . . . . . 1 . 4 1 3 1 . 3 Unidentified Prototypes 3 | . . . 1 . . . 2 . . . . . Corrupted Parts 1 | . . 1 . . . . . . . . . . System Corruption 5 | . . 5 . . . . . . . . . . Parts Lost 19 | . 2 . 1 . . 2 5 2 . . . 7 Power 2 | . . . . . . . 1 . . . . 1 Propulsion 3 | . . . . . . 1 . . . . . 2 Utility 9 | . 1 . 1 . . 1 3 1 . . . 2 Weapon 5 | . 1 . . . . . 1 1 . . . 2 Highest Loss Streak 3 | . 1 . 1 . . 2 2 1 . . . 3 To Critical Strikes . | . . . . . . . . . . . . . Average Slot Usage (%) 98 | . 94 100 99 99 100 100 99 96 99 100 100 96 Engine 10 | . 14 14 11 11 11 11 8 9 8 9 9 8 Treads 29 | . 28 28 33 33 33 33 26 27 27 27 27 24 Device 8 | . . . . 2 11 11 12 17 17 9 9 8 Storage 10 | . 14 14 11 11 11 11 9 9 9 9 9 8 Processor 6 | . . . . . . . 7 9 9 17 18 18 Hackware 1 | . . . . . . . 6 . . . . 1 Protection 12 | . 11 14 21 19 11 11 8 9 8 9 9 7 Ballistic Gun 17 | . 9 27 21 21 12 21 17 10 17 15 17 14 Naked Turns . | . . . . . . . . . . . . . Heaviest Build 110 | 12 24 54 61 61 60 62 102 104 110 110 109 109 Greatest Support 69 | 40 40 40 60 60 60 60 60 60 60 60 69 69 Greatest Overweight (x) 2 | . . 1 1 1 . 1 1 1 1 1 1 2 Average Overweight (x) . | . . . . . . . . 1 1 1 1 1 Largest Inventory Capacity 25 | 8 10 20 20 20 20 20 25 25 25 25 25 25 Average Capacity 21 | 8 9 10 20 20 20 20 23 25 25 25 25 24 Most Carried 25 | 6 10 10 20 20 20 20 25 25 25 25 25 25 Average Carried 20 | 6 9 9 18 19 20 18 22 24 24 24 25 23 Final Capacity 25 | 8 10 20 20 20 20 20 25 25 25 25 25 5 Final Carried 25 | 6 10 9 20 20 20 19 24 25 25 25 25 5 Class Distribution -------------------- 49% | Mutant 29% | Scavenger-Mutant 19% | Bothacker-Mutant Dominant Class ---------------- Mutant | -10/Materials Mutant | -10/Mines Mutant | -9/Materials Scavenger-Mutant | -9/Mines Mutant | -9/Exiles Scavenger-Mutant | -8/Mines Mutant | -8/Materials Mutant | -8/Garrison Mutant | -8/Materials Bothacker-Mutant | -8/Garrison Bothacker-Mutant | -8/Materials Bothacker-Mutant | -8/Garrison Resources | -11 -10 -10 -9 -9 -9 -8 -8 -8 -8 -8 -8 -8 ----------- Run | Yrd Mat Min Mat Min Exi Min Mat Gar Mat Gar Mat Gar Matter Collected 6468 | 220 253 172 1342 64 . 218 1178 486 1068 759 283 425 Remotely . | . . . . . . . . . . . . . Salvage Created 7984 | . 435 273 2073 43 . 267 1724 457 1056 896 426 334 Parts 485 | . 24 22 120 5 . 15 96 44 73 49 25 12 Haulers Intercepted 17 | . 2 . 6 . . . 5 . 4 . . . Recyclers Shooed 3 | . . . . . . . 3 . . . . . Parts Field Recycled 12 | . . . . . . . 12 . . . . . Retrieved Matter 112 | . . . . . . . 112 . . . . . Parts Self-Destructed . | . . . . . . . . . . . . . Prevented . | . . . . . . . . . . . . . Kills | -11 -10 -10 -9 -9 -9 -8 -8 -8 -8 -8 -8 -8 ------- Run | Yrd Mat Min Mat Min Exi Min Mat Gar Mat Gar Mat Gar Combat Hostiles Destroyed 190 | . 11 9 41 3 . 13 30 19 19 24 10 11 Guns 121 | . 8 3 28 3 . 5 20 6 18 17 9 4 AOE 67 | . 3 6 13 . . 8 9 13 1 7 1 6 Classes Destroyed 15 | . 2 2 7 1 . 1 1 . . 1 . . Worker 5 | . . . . 2 . . 1 . 1 . 1 . Builder 5 | . . 1 1 . . . 2 . 1 . . . Tunneler 3 | . . . 1 . . 1 1 . . . . . Hauler 17 | . 2 . 6 . . . 5 . 4 . . . Recycler 4 | . . . . . . 1 2 . . . 1 . Mechanic 1 | . . . 1 . . . . . . . . . Operator 3 | . . . 1 . . . 2 . . . . . Watcher 6 | . . . 4 . . . . . 2 . . . Swarmer 38 | . . 3 . 3 . 7 3 11 4 4 3 . Grunt 96 | . 11 6 27 . . 4 14 3 9 8 5 9 Brawler 7 | . . . 1 . . . 2 . . 3 1 . Duelist 6 | . . . 3 . . 2 . . . 1 . . Sentry 33 | . . . 10 . . . 9 4 4 5 1 . Specialist 3 | . . . . . . . . . . 3 . . Hunter 7 | . . . . . . . 2 1 2 . . 2 Best Kill Streak 10 | . 3 3 8 3 . 4 5 10 4 4 5 3 Combat Bots Only 10 | . 3 3 7 3 . 4 3 10 2 4 4 3 Max Kills in Single Turn 4 | . 1 3 3 1 . 4 4 3 2 3 2 2 Gunslinging 1 | . . . . . . . 1 . . . . . Exploded 4 | . 1 2 3 . . 4 3 3 1 3 1 2 Melee . | . . . . . . . . . . . . . Uniques/NPCs Destroyed . | . . . . . . . . . . . . . Combat | -11 -10 -10 -9 -9 -9 -8 -8 -8 -8 -8 -8 -8 -------- Run | Yrd Mat Min Mat Min Exi Min Mat Gar Mat Gar Mat Gar Hostile Shots Fired 686 | . 58 17 99 7 . 33 115 37 85 89 44 102 Missed 206 | . 13 3 42 1 . 11 39 9 22 20 19 27 Damage Taken 6947 | . 589 168 1036 51 . 556 1377 376 680 826 328 960 Core 906 | . 114 26 136 . . 77 135 26 78 167 11 136 Absorbed by Shields 1115 | . . . . . . . . 139 259 350 122 245 Redirected to Shielding 214 | . . . 195 19 . . . . . . . . Ignored by Resistances 123 | . . . . . . . . . 52 71 . . Regen/Repaired (Parts) 844 | . 94 . 83 . . . 557 . 110 . . . Core Remaining (%) 63 | 100 . 44 . . . 46 . . . . . . Volleys Fired 535 | . 50 13 106 4 . 24 120 31 73 64 21 29 Largest 2 | . 2 2 2 2 . 2 2 2 2 2 2 2 Hottest 100 | . 100 46 60 46 . 46 63 64 50 50 50 50 Shots Fired 960 | . 77 22 206 8 . 40 222 41 143 116 40 45 Gun 885 | . 69 18 196 8 . 32 211 31 141 108 38 33 Cannon 7 | . . . . . . . 7 . . . . . Launcher 66 | . 6 4 10 . . 8 4 10 2 8 2 12 Special 2 | . 2 . . . . . . . . . . . Kinetic 843 | . 27 18 196 8 . 32 211 31 141 108 38 33 Thermal 44 | . 44 . . . . . . . . . . . Explosive 66 | . 6 4 10 . . 8 4 10 2 8 2 12 Electromagnetic 7 | . . . . . . . 7 . . . . . Robot Hit Streak 39 | . 11 15 21 7 . 8 25 13 21 39 18 9 Robot Miss Streak 4 | . 2 1 4 . . 2 4 3 4 2 2 3 Penetration Max . | . . . . . . . . . . . . . Secondary Targets 9 | . . . 3 . . 1 1 . 2 . 2 . Max Gunslinging Chain 1 | . . . 1 . . 1 1 . 1 . 1 . Shots Hit Robots 707 | . 56 13 144 5 4 28 162 33 107 92 31 32 Core Hits 385 | . 31 14 80 3 . 23 71 25 49 44 23 22 Critical Kills . | . . . . . . . . . . . . . Critical Parts Destroyed 2 | . . . 1 . . . 1 . . . . . Critical Strikes 5 | . 3 . 1 . . . 1 . . . . . Burn 3 | . 3 . . . . . . . . . . . Destroy 2 | . . . 1 . . . 1 . . . . . Melee Attacks 59 | . . . . 2 4 . 1 16 13 16 . 7 Impact 18 | . . . . 2 . . 1 . . 11 . 4 Slashing 8 | . . . . . . . . 8 . . . . Piercing . | . . . . . . . . . . . . . Sneak Attacks 25 | . . . . . 4 . . 8 8 5 . . Combat Hostiles 1 | . . . . . . . . . 1 . . . Follow-up Attacks . | . . . . . . . . . . . . . Damage Inflicted 18268 | . 1066 445 3636 104 . 1236 3546 1597 1929 2519 785 1405 Guns 10208 | . 603 178 2286 84 . 337 2430 322 1591 1478 543 356 Cannons 104 | . . . . . . . 104 . . . . . Explosions 7452 | . 442 263 1312 . . 834 926 1105 248 1038 235 1049 Melee 164 | . . . . . . . . 164 . . . . Ramming 340 | . 21 4 38 20 . 65 86 6 90 3 7 . Kinetic 9784 | . 179 178 2286 84 . 337 2430 322 1591 1478 543 356 Thermal 745 | . 424 . 84 . . . 237 . . . . . Explosive 7131 | . 442 263 1228 . . 834 689 1105 248 1038 235 1049 Electromagnetic 104 | . . . . . . . 104 . . . . . Impact . | . . . . . . . . . . . . . Slashing 164 | . . . . . . . . 164 . . . . Piercing . | . . . . . . . . . . . . . Highest Corruption 6 | . . 5 . . . . 5 5 6 . 1 1 Average Corruption 4 | . . 5 . . . . 5 5 5 . 1 1 Corruption Purged 6 | . . . . . . . . . 6 . . . Corruption Blocked . | . . . . . . . . . . . . . Effects 94 | . . . . . . . 22 38 25 . 3 6 Message Errors 23 | . . . . . . . 5 10 5 . 1 2 Matter Fused 20 | . . . . . . . 2 9 7 . . 2 Heat Flow Errors 7 | . . . . . . . 3 2 2 . . . Energy Discharges 11 | . . . . . . . 4 5 1 . . 1 Parts Rejected 1 | . . . . . . . . . 1 . . . Parts Fused 3 | . . . . . . . . 1 2 . . . Data Loss (minor) 9 | . . . . . . . 2 3 3 . 1 . Data Loss (major) 6 | . . . . . . . 2 2 1 . 1 . Misfires 6 | . . . . . . . 2 3 1 . . . Alerts 4 | . . . . . . . 1 1 1 . . 1 Weapon Failures 4 | . . . . . . . 1 2 1 . . . Overload Shots . | . . . . . . . . . . . . . Overflow Damage 268 | . . . 44 . . . 85 85 . 5 . 49 Projectiles . | . . . . . . . . . . . . . Explosions 205 | . . . 39 . . . 85 27 . 5 . 49 Melee 63 | . . . 5 . . . . 58 . . . . Knockbacks 2 | . . . . . . 1 1 . . . . . Impact 2 | . . . . . . 1 1 . . . . . Kinetic . | . . . . . . . . . . . . . Secondary . | . . . . . . . . . . . . . Self-Inflicted Damage 989 | . . . 157 . . 190 201 165 . 151 71 54 Shots 26 | . . . 5 . . 6 3 4 . 4 2 2 Rammed 47 | . 11 1 3 1 . 8 8 1 11 2 1 . Targets Rammed 52 | . 11 1 4 3 . 9 9 1 11 2 1 . Kicked . | . . . . . . . . . . . . . Crushed 5 | . . . 1 2 . 1 1 . . . . . Highest Temperature 249 | . 247 96 96 . . 41 245 249 173 162 23 18 Average Temperature 44 | . 76 40 18 . . 14 70 68 36 35 8 6 Received Heat Transfer 2129 | . 330 90 294 . . 81 387 46 298 292 96 215 Effects 1 | . 1 . . . . . . . . . . . Interference 1 | . 1 . . . . . . . . . . . Siege Activations . | . . . . . . . . . . . . . Robots Corrupted 1 | . . . . . . . 1 . . . . . Combat Hostiles 1 | . . . . . . . 1 . . . . . Parts Fried 2 | . . . 2 . . . . . . . . . Impact Corruptions 1 | . . . 1 . . . . . . . . . Robots Melted . | . . . . . . . . . . . . . Combat Hostiles . | . . . . . . . . . . . . . Parts Melted 3 | . 3 . . . . . . . . . . . Heat Transferred 1643 | . 1443 . 50 . . . 150 . . . . . Parts Sabotaged . | . . . . . . . . . . . . . Parts Stolen . | . . . . . . . . . . . . . Parts Stripped . | . . . . . . . . . . . . . Power Chain Reactions . | . . . . . . . . . . . . . Alert | -11 -10 -10 -9 -9 -9 -8 -8 -8 -8 -8 -8 -8 ------- Run | Yrd Mat Min Mat Min Exi Min Mat Gar Mat Gar Mat Gar Peak Influence 1539 | . 271 356 691 326 . 346 650 1111 727 1539 1169 1059 Initial 750 | . . 61 1 255 . . . 422 541 228 750 662 Average 411 | . 169 169 370 122 . 120 252 779 296 736 960 836 Maximum Alert Level 4 | . 1 1 2 1 . 1 2 4 3 4 4 3 Low Security (%) 30 | 100 64 78 18 71 . 79 45 . 14 . . . Level 1 27 | . 35 21 41 28 . 20 26 . 70 5 . . Level 2 21 | . . . 40 . . . 28 27 8 47 . 17 Level 3 17 | . . . . . . . . 66 6 29 94 82 Level 4 3 | . . . . . . . . 5 . 17 5 . Level 5 . | . . . . . . . . . . . . . High Security . | . . . . . . . . . . . . . Max Security . | . . . . . . . . . . . . . Squads Dispatched 29 | . 3 . 8 1 . . 5 . 9 . 3 . Investigation 14 | . 2 . 4 1 . . 2 . 4 . 1 . Extermination . | . . . . . . . . . . . . . Reinforcement 8 | . 1 . 3 . . . 2 . 2 . . . Assault 2 | . . . 1 . . . . . . . 1 . Garrison 5 | . . . . . . . 1 . 3 . 1 . Intercept . | . . . . . . . . . . . . . Searches Triggered . | . . . . . . . . . . . . . Construction Impeded . | . . . . . . . . . . . . . Haulers Reinforced . | . . . . . . . . . . . . . Active Scanning Responses . | . . . . . . . . . . . . . Cargo Convoy Interrupts . | . . . . . . . . . . . . . Stealth | -11 -10 -10 -9 -9 -9 -8 -8 -8 -8 -8 -8 -8 --------- Run | Yrd Mat Min Mat Min Exi Min Mat Gar Mat Gar Mat Gar Distress Signals 16 | . 1 . 7 . . . 5 . 3 . . . Communications Jammed . | . . . . . . . . . . . . . Distress Signals . | . . . . . . . . . . . . . Times Spotted 280 | . 23 10 58 3 . 12 51 13 41 31 23 15 Peak Tracking Total 8 | . 4 3 8 3 . 4 5 5 3 4 4 5 Tactical Retreats 5 | . 1 1 . . . . . . 1 . . 2 Traps | -11 -10 -10 -9 -9 -9 -8 -8 -8 -8 -8 -8 -8 ------- Run | Yrd Mat Min Mat Min Exi Min Mat Gar Mat Gar Mat Gar Traps Triggered 24 | . . . 3 . . . . 10 3 6 1 1 Indirectly . | . . . . . . . . . . . . . Trap Hack Attempts 38 | . . . . . . . 38 . . . . . Triggered . | . . . . . . . . . . . . . Disarmed 1 | . . . . . . . 1 . . . . . Reprogrammed 3 | . . . . . . . 3 . . . . . Reused 2 | . . . . . . . 2 . . . . . Traps Extracted . | . . . . . . . . . . . . . Installed . | . . . . . . . . . . . . . Triggered 2 | . . . . . . . 2 . . . . . Machines | -11 -10 -10 -9 -9 -9 -8 -8 -8 -8 -8 -8 -8 ---------- Run | Yrd Mat Min Mat Min Exi Min Mat Gar Mat Gar Mat Gar Machines Disabled 12 | . 1 . 3 . . . 4 1 1 1 . 1 Max in Single Turn 3 | . 1 . 1 . . . 3 1 . 1 . 1 Garrison Relay 5 | . . . . . . . . 2 . 2 . 1 Machines Repaired . | . . . . . . . . . . . . . Machines Dismantled 5 | . . . . . . . . 2 . 3 . . Machines Sabotaged . | . . . . . . . . . . . . . Overloaded Fab Kills . | . . . . . . . . . . . . . Hacking | -11 -10 -10 -9 -9 -9 -8 -8 -8 -8 -8 -8 -8 --------- Run | Yrd Mat Min Mat Min Exi Min Mat Gar Mat Gar Mat Gar Machines Accessed 52 | . 7 . 13 1 1 . 10 4 8 4 3 1 Terminals 34 | . 5 . 9 . . . 5 4 5 4 1 1 Fabricators . | . . . . . . . . . . . . . Repair Stations 6 | . 1 . 1 . . . 2 . 1 . 1 . Recycling Units 4 | . 1 . 2 . . . 1 . . . . . Scanalyzers 3 | . . . 1 . . . 1 . 1 . . . Garrison Access 3 | . . . . . . . 1 . 1 . 1 . Total Hacks 168 | . 21 . 38 1 1 . 48 9 25 10 12 3 Successful 78 | . 11 . 20 1 1 . 28 3 9 3 2 . Failed 89 | . 9 . 18 . . . 20 6 16 7 10 3 Catastrophic 18 | . 1 . 1 . . . 4 2 5 2 2 1 Database Lockouts 1 | . 1 . . . . . . . . . . . Manual 74 | . 17 . 19 . . . 16 . 9 2 11 . Terminals 108 | . 16 . 26 . . . 23 9 14 10 7 3 Fabricators . | . . . . . . . . . . . . . Repair Stations 28 | . 4 . 2 . . . 16 . 4 . 2 . Recycling Units 9 | . 1 . 6 . . . 2 . . . . . Scanalyzers 11 | . . . 4 . . . 4 . 3 . . . Garrison Access 10 | . . . . . . . 3 . 4 . 3 . Terminal Hacks 28 | . 6 . 7 1 1 . 7 3 . 3 . . Record 1 | . . . . . 1 . . . . . . . Robot Analysis 8 | . 3 . 1 . . . 4 . . . . . Prototype ID Bank 5 | . 2 . 3 . . . . . . . . . Open Door 1 | . . . . 1 . . . . . . . . Branch Access Points 1 | . . . 1 . . . . . . . . . Emergency Access Points 2 | . . . . . . . . 1 . 1 . . Terminal Index 1 | . . . . . . . 1 . . . . . Unreport Threat 1 | . . . 1 . . . . . . . . . Zone Layout 4 | . 1 . 1 . . . 2 . . . . . Garrison Registry 1 | . . . . . . . . 1 . . . . Patrol Navigation 1 | . . . . . . . . . . 1 . . Security Stations 2 | . . . . . . . . 1 . 1 . . Fabricator Hacks . | . . . . . . . . . . . . . Repair Station Hacks 20 | . 3 . 2 . . . 12 . 3 . . . Scan Component 10 | . 1 . 1 . . . 6 . 2 . . . Repair 9 | . 1 . 1 . . . 6 . 1 . . . Refit 1 | . 1 . . . . . . . . . . . Recycling Unit Hacks 2 | . . . 1 . . . 1 . . . . . Retrieve Components 2 | . . . 1 . . . 1 . . . . . Scanalyzer 11 | . . . 4 . . . 4 . 3 . . . Insert Component 7 | . . . 2 . . . 2 . 3 . . . Analyze 4 | . . . 2 . . . 2 . . . . . Garrison Access Hacks 3 | . . . . . . . 1 . 1 . 1 . Unlock Access 3 | . . . . . . . 1 . 1 . 1 . Unauthorized Hacks 14 | . 2 . 6 . . . 3 . 2 . 1 . Terminals 6 | . 1 . 2 . . . 1 . 1 . 1 . Assimilate 1 | . 1 . . . . . . . . . . . Botnet 3 | . . . 1 . . . 1 . 1 . . . Operators 1 | . . . . . . . . . . . 1 . Search 1 | . . . 1 . . . . . . . . . Fabricators . | . . . . . . . . . . . . . Repair Stations . | . . . . . . . . . . . . . Recycling Units 6 | . 1 . 4 . . . 1 . . . . . Reject 3 | . . . 2 . . . 1 . . . . . Tunnel 3 | . 1 . 2 . . . . . . . . . Scanalyzers . | . . . . . . . . . . . . . Garrison Access 2 | . . . . . . . 1 . 1 . . . Reprogram 2 | . . . . . . . 1 . 1 . . . Data Cores Recovered 1 | . . . . . . . 1 . . . . . Used . | . . . . . . . . . . . . . Hacking Detections 43 | . 5 . 11 . . . 8 4 7 4 3 1 Full Trace Events 6 | . . . . . . . 1 . 2 . 2 1 Feedback Events . | . . . . . . . . . . . . . Feedback Blocked . | . . . . . . . . . . . . . Robot Schematics Acquired . | . . . . . . . . . . . . . Robots Built . | . . . . . . . . . . . . . Authchips . | . . . . . . . . . . . . . Time . | . . . . . . . . . . . . . Total Robot Build Rating . | . . . . . . . . . . . . . Part Schematics Acquired 4 | . . . 2 . . . 2 . . . . . Parts Built . | . . . . . . . . . . . . . Authchips . | . . . . . . . . . . . . . Time . | . . . . . . . . . . . . . Total Part Build Rating . | . . . . . . . . . . . . . Parts Repaired 9 | . 1 . 1 . . . 6 . 1 . . . Time 265 | . 26 . 26 . . . 162 . 51 . . . Parts Recycled . | . . . . . . . . . . . . . Recycled Matter . | . . . . . . . . . . . . . Retrieved Matter . | . . . . . . . . . . . . . Retrieved Components 19 | . . . 10 . . . 9 . . . . . Parts Scanalyzed 4 | . . . 2 . . . 2 . . . . . Part Schematics Acquired 4 | . . . 2 . . . 2 . . . . . Parts Damaged . | . . . . . . . . . . . . . Bothacking | -11 -10 -10 -9 -9 -9 -8 -8 -8 -8 -8 -8 -8 ------------ Run | Yrd Mat Min Mat Min Exi Min Mat Gar Mat Gar Mat Gar Used RIF Installer 2 | . . . . . . . . 1 . 1 . . Command Fork 1 | . . . . . . . . . . 1 . . Robots Hacked 13 | . . . . . 4 . . . 7 . . 2 Non-combat 5 | . . . . . 3 . . . 2 . . . Combat 8 | . . . . . 1 . . . 5 . . 2 Robot Hacks Applied 17 | . . . . . 4 . . . 11 . . 2 parse_system 4 | . . . . . 4 . . . . . . . purge_threat 4 | . . . . . . . . . 4 . . . locate_traps 1 | . . . . . . . . . 1 . . . find_shortcuts 1 | . . . . . . . . . 1 . . . overwrite_iff 1 | . . . . . . . . . . . . 1 streamctrl_high 3 | . . . . . . . . . 3 . . . formatsys_low 1 | . . . . . . . . . 1 . . . formatsys_high 2 | . . . . . . . . . 1 . . 1 Relay Couplers Released 23 | . . . . . . . . 10 . 8 . 5 Machine Destruction 23 | . . . . . . . . 10 . 8 . 5 Attached 5 | . . . . . . . . . 4 . . 1 Fabnet Peak Effective % . | . . . . . . . . . . . . . Robots Rewired 11 | . . . . . . . . 4 . 7 . . Allies Hacked . | . . . . . . . . . . . . . Hacks Repelled . | . . . . . . . . . . . . . Allies | -11 -10 -10 -9 -9 -9 -8 -8 -8 -8 -8 -8 -8 -------- Run | Yrd Mat Min Mat Min Exi Min Mat Gar Mat Gar Mat Gar Total Allies 23 | . 1 . . . . . 1 4 6 9 . 2 Largest Group 5 | . 1 1 1 . . . . 4 4 5 3 1 Highest-Rated Group 120 | . 9 9 9 . . . . 118 118 120 120 16 Highest-Rated Ally 40 | . 9 9 9 . . . . 31 34 40 40 16 Total Orders 17 | . . 7 1 . . . . . 6 2 1 . STAY 12 | . . 5 1 . . . . . 4 1 1 . FOLLOW 4 | . . 2 . . . . . . 1 1 . . AID 1 | . . . . . . . . . 1 . . . Ally Attacks 170 | . . . . . . . . 1 68 39 53 9 Total Damage 3489 | . . . . . . . . 18 1174 953 1265 79 Kills 40 | . . . . . . . . 1 10 15 14 . Allies Corrupted . | . . . . . . . . . . . . . Allies Melted 2 | . . . . . . . . . 1 . . 1 Intel | -11 -10 -10 -9 -9 -9 -8 -8 -8 -8 -8 -8 -8 ------- Run | Yrd Mat Min Mat Min Exi Min Mat Gar Mat Gar Mat Gar Robot Analysis Total 8 | . 3 . 1 . . . 4 . . . . . Derelict Logs Recovered 2 | . . 1 . 1 . . . . . . . . Drone Launches . | . . . . . . . . . . . . . Drone Recoveries . | . . . . . . . . . . . . . Exploration | -11 -10 -10 -9 -9 -9 -8 -8 -8 -8 -8 -8 -8 ------------- Run | Yrd Mat Min Mat Min Exi Min Mat Gar Mat Gar Mat Gar Turns Passed 17675 | 8 1104 845 2955 1384 355 1247 2449 1604 2142 2257 804 521 Spaces Moved 6939 | 4 536 496 1309 610 217 492 758 589 729 762 283 154 Core 5 | . . . . . . . . . . . . 5 Treads 6934 | 4 536 496 1309 610 217 492 758 589 729 762 283 149 Legs . | . . . . . . . . . . . . . Wheels . | . . . . . . . . . . . . . Hover . | . . . . . . . . . . . . . Flight . | . . . . . . . . . . . . . Fastest Speed 150 | 160 160 160 160 160 160 160 160 240 240 240 240 150 Average Speed 212 | 160 160 160 187 210 160 234 239 240 240 240 240 251 Slowest Speed 320 | 160 160 240 240 240 160 240 240 240 240 240 240 320 Overloaded Moves . | . . . . . . . . . . . . . Propulsion Burnouts . | . . . . . . . . . . . . . Robots Hopped . | . . . . . . . . . . . . . Cave-ins Triggered . | . . . . . . . . . . . . . Exploration Rate (%) 65 | 2 56 96 94 97 64 95 81 68 61 80 40 21 Regions Visited 12 Branch Regions 4 Pre-discovered Areas 6 | . 1 1 2 1 1 . . . . . . . Known Exits Taken 4 | . . . 1 . . . 1 . 1 . 1 . Unknown Exits Taken 6 | 1 1 1 . 1 1 1 . . . . . . Scrap Searched 5 | . . 1 . 3 . 1 . . . . . . Spaces Dug 72 | . 17 . . 1 . . 17 7 . 26 . 4 Terrain Destroyed 594 | . 45 51 104 1 . 85 49 96 20 58 10 75 Melee 17 | . . . . 1 . . 1 4 . 7 . 4 Projectile . | . . . . . . . . . . . . . AOE 577 | . 45 51 104 . . 85 48 92 20 51 10 71 Terrain Rammed . | . . . . . . . . . . . . . Walls Destroyed . | . . . . . . . . . . . . . Machines Disabled . | . . . . . . . . . . . . . Actions | -11 -10 -10 -9 -9 -9 -8 -8 -8 -8 -8 -8 -8 --------- Run | Yrd Mat Min Mat Min Exi Min Mat Gar Mat Gar Mat Gar Total 9062 | 5 702 526 1645 700 222 539 1244 731 1040 1083 384 241 Wait 839 | . 57 7 145 71 . 3 218 26 148 83 62 19 Move 6927 | 3 535 495 1308 609 216 491 757 588 728 761 282 154 Hop . | . . . . . . . . . . . . . Pick Up 103 | . 14 1 22 3 . 1 29 10 12 8 1 2 Fast Attach 31 | . 4 . 2 1 . 3 8 1 7 3 2 . Attach 31 | . 3 . 2 . . 2 11 3 5 . . 5 Detach 12 | . 2 . 1 . . . 2 2 3 2 . . Swap 180 | 2 12 7 29 3 2 6 30 17 21 24 8 19 Drop 120 | . 14 2 26 4 . . 21 9 17 15 7 5 Fire 535 | . 50 13 106 4 . 24 120 31 73 64 21 29 Melee 59 | . . . . 2 4 . 1 16 13 16 . 7 Ram . | . . . . . . . . . . . . . Kick . | . . . . . . . . . . . . . Crush 52 | . 11 1 4 3 . 9 9 1 11 2 1 . Escape Stasis 28 | . . . . . . . . 16 . 12 . . Rewire 77 | . . . . . . . . . 2 74 . 1 Trap 38 | . . . . . . . 38 . . . . . Miscellaneous 30 | . . . . . . . . 11 . 19 . . Route ------- -11/Scrapyard -10/Materials (discovered 3 exits: *Mat x2 / [*Min]) -10/Mines (discovered 2 exits: *Mat x2) -9/Materials (discovered 4 exits: *Mat x3 / *Min) -9/Mines (discovered 4 exits: *Mat x2 / *Exi / [*Zio]) -9/Exiles -8/Mines (discovered 2 exits: *Mat x2) -8/Materials (discovered 3 exits: [*Fac x2] / Gar) -8/Garrison (discovered 3 exits: *Mat x3) -8/Materials (discovered 3 exits: [*Fac x2] / Gar) -8/Garrison (discovered 4 exits: [*Fac x3] / *Mat) -8/Materials (discovered 2 exits: [*Fac] / Gar) -8/Garrison History --------- Turn | Location | Event 4 | -11/Scrapyard | Discovered new exit (range 3) 9 | -11/Scrapyard | Entered Materials 189 | -10/Materials | Discovered new exit (range 16) 307 | -10/Materials | Build established: Mutant 438 | -10/Materials | Discovered new exit (range 12) 496 | -10/Materials | Discovered new exit (range 9) 602 | -10/Materials | Central database locked down 811 | -10/Materials | Repaired Lgt. Treads 1113 | -10/Materials | Entered Mines 1113 | -10/Mines | Accompanied by 1 ally 1125 | -10/Mines | Met a Derelict bent on vengeance 1168 | -10/Mines | Discovered new exit (range 14) 1254 | -10/Mines | A weapon hastily lodged in a ceiling crevice suddenly fell to the ground 1287 | -10/Mines | Core integrity fell below 50% 1396 | -10/Mines | Discovered new exit (range 12) 1820 | -10/Mines | Learned location of Recycling (-7) 1958 | -10/Mines | Entered Materials 1958 | -9/Materials | Accompanied by 1 ally 1958 | -9/Materials | Evolved 2 slots: Propulsion x1, Utility x1 2139 | -9/Materials | Destroyed 7 combat bots 2494 | -9/Materials | Repaired Lgt. Armor Plating 2755 | -9/Materials | Build established: Scavenger-Mutant 3176 | -9/Materials | Identified exit to Mines 3206 | -9/Materials | Build established: Mutant 3252 | -9/Materials | Discovered new exit (range 13) 3673 | -9/Materials | Discovered new exit (range 15) 3958 | -9/Materials | First assault squad dispatched 4237 | -9/Materials | Build established: Scavenger-Mutant 4407 | -9/Materials | Discovered new exit (range 7) 4913 | -9/Materials | Entered Mines 4967 | -9/Mines | Assembled infested the area 5238 | -9/Mines | Received a Rocket Launcher from a helpful Derelict 5415 | -9/Mines | Discovered new exit (range 5) 5684 | -9/Mines | Learned Materials trap positions 5692 | -9/Mines | A Derelict revealed a hidden shortcut to a safe place 5923 | -9/Mines | Met a Derelict shopkeep closing up shop 6036 | -9/Mines | Discovered new exit (range 15) 6150 | -9/Mines | Discovered new exit (range 12) 6297 | -9/Mines | Entered Exiles 6345 | -9/Exiles | Met 8R-AWN 6372 | -9/Exiles | Met EX-HEX 6449 | -9/Exiles | Met EX-DEC 6515 | -9/Exiles | Met EX-BIN 6574 | -9/Exiles | Learned location of Zion (-7) 6631 | -9/Exiles | Discovered new exit (range 14) 6652 | -9/Exiles | Entered Mines 6746 | -8/Mines | Core integrity fell below 50% 6911 | -8/Mines | Discovered new exit (range 3) 7196 | -8/Mines | Discovered new exit (range 10) 7899 | -8/Mines | Entered Materials 7899 | -8/Materials | Evolved 2 slots: Utility x2 7900 | -8/Materials | Loaded intel: 21 trap records 8538 | -8/Materials | Repaired Med. Armor Plating 8565 | -8/Materials | Repaired Lgt. Treads 8593 | -8/Materials | Repaired Lgt. Treads 8626 | -8/Materials | Build established: Mutant 8642 | -8/Materials | Discovered new exit (range 16) 9302 | -8/Materials | Build established: Scavenger-Mutant 9789 | -8/Materials | Repaired Lgt. Treads 9816 | -8/Materials | Repaired Lgt. Treads 9843 | -8/Materials | Repaired Lgt. Treads 9961 | -8/Materials | Build established: Mutant 10186 | -8/Materials | Discovered new exit (range 16) 10320 | -8/Materials | Identified exit to Garrison 10348 | -8/Materials | Entered Garrison 10348 | -8/Garrison | Accompanied by 1 ally 10394 | -8/Garrison | Triggered checkpoint 10434 | -8/Garrison | Garrison Relay disabled 10772 | -8/Garrison | Triggered checkpoint 10777 | -8/Garrison | Triggered checkpoint 10824 | -8/Garrison | Destroyed 10 combat bots 10928 | -8/Garrison | Triggered checkpoint 11055 | -8/Garrison | Discovered new exit (range 60) 11055 | -8/Garrison | Discovered new exit (range 13) 11055 | -8/Garrison | Discovered new exit (range 80) 11152 | -8/Garrison | Triggered checkpoint 11315 | -8/Garrison | Learned Materials security intel 11361 | -8/Garrison | Installed Relay Interface Framework 11589 | -8/Garrison | Triggered checkpoint 11739 | -8/Garrison | Garrison Relay disabled 11952 | -8/Garrison | Entered Materials 11952 | -8/Materials | Accompanied by 4 allies 12031 | -8/Materials | Build established: Bothacker-Mutant 12683 | -8/Materials | Discovered new exit (range 12) 12734 | -8/Materials | Build established: Mutant 13283 | -8/Materials | Discovered new exit (range 7) 13517 | -8/Materials | Repaired Cld. Ion Engine? 13886 | -8/Materials | Garrison activated, responded to threat 14072 | -8/Materials | Identified exit to Garrison 14094 | -8/Materials | Entered Garrison 14094 | -8/Garrison | Accompanied by 2 allies 14130 | -8/Garrison | Triggered checkpoint 14184 | -8/Garrison | Triggered checkpoint 14213 | -8/Garrison | Core integrity fell below 50% 14375 | -8/Garrison | Garrison Relay disabled 14480 | -8/Garrison | Triggered checkpoint 14600 | -8/Garrison | Rescued a captive Derelict 14601 | -8/Garrison | Rescued a captive Derelict 14703 | -8/Garrison | Garrison Relay disabled 14818 | -8/Garrison | Triggered checkpoint 14956 | -8/Garrison | Triggered checkpoint 14963 | -8/Garrison | Learned Factory security intel 15002 | -8/Garrison | Lost 3 allies 15004 | -8/Garrison | Build established: Bothacker-Mutant 15107 | -8/Garrison | Discovered new exit (range 10) 15444 | -8/Garrison | Expanded RIF knowledge: Command Fork 15529 | -8/Garrison | Triggered checkpoint 15636 | -8/Garrison | Triggered checkpoint 15898 | -8/Garrison | Discovered new exit (range 15) 16056 | -8/Garrison | Triggered checkpoint 16270 | -8/Garrison | Triggered checkpoint 16270 | -8/Garrison | Discovered new exit (range 13) 16325 | -8/Garrison | Discovered new exit (range 6) 16351 | -8/Garrison | Entered Materials 16351 | -8/Materials | Accompanied by 3 allies 16751 | -8/Materials | First assault squad dispatched 17006 | -8/Materials | Discovered new exit (range 4) 17087 | -8/Materials | Garrison activated, responded to threat 17145 | -8/Materials | Identified exit to Garrison 17155 | -8/Materials | Entered Garrison 17218 | -8/Garrison | Core integrity fell below 20% 17305 | -8/Garrison | Triggered checkpoint 17505 | -8/Garrison | Triggered checkpoint 17582 | -8/Garrison | Lost 3 parts (1n2w) 17646 | -8/Garrison | Spotted B-75 Beast 17647 | -8/Garrison | Spotted B-75 Beast 17675 | -8/Garrison | Triggered checkpoint 17676 | -8/Garrison | Destroyed by B-75 Beast with Magnetic Acceleration Cannon Last Messages --------------- 17565_ G-50 Soldier heat damages core (-17). 17565_ Acquired Lrg. Matter Pod. 17569_ The unstable cave ceiling collapses. 17569_ Acquired 20 matter. 17571_ The unstable cave ceiling collapses. 17607_ QV,ITLSERLMFRV7ES3DV1DSNXSXI|Q 17630_ Triggered Alarm Trap. 17630_ An alarm sounds. 17633_ Connecting with Garrison Terminal... 17633_ ALERT: Suspicious activity at Terminal G002. Transmitting hostile system tracking data. 17660_ Adv. Shield Generator destroyed. 17660_ Imp. Medium Armor Plating destroyed. 17660_ Imp. Treads destroyed. 17664_ Dropped Huge Storage Unit. 17664_ Dropped Hardlight Generator. 17667_ Imp. Treads severed. 17667_ Enh. Autogun blasted off. 17668_ Dropped Cld. Ion Engine. 17668_ Dropped Enh. Autogun. Map ----- +----------------------------------------------------+ | ?????????????????????????????????????????????????? | | ?????????????????????????????????????????????????? | | ?????????????????????????????????????????????????? | | ?????????????????????????????????????????????????? | | ?????????????????????????????????????????????????? | | ?????????????????????????????????????????????????? | | ?????????????????????????????????????????????????? | | ?????????????????????????????????????????????????? | | ?????????????????????????????????????????????????? | | ?????????????????????????????????????????????????? | | ?????????????????????????????????????????????????? | | ?????????????????????????????????????????????????? | | ?????????????????????????????????????????????????? | | ?????????????????????????????????????????????????? | | ?????????????? ?????????????????????????????????? | | ?????????????? ????????????????????????????????? | | ????????????? ???????????????????????????????? | | ??????????????# ?#????????????????????????????? | | ???????????? ## ## ???????????????????????????? | | ????????????? ???????????????????????????? | | ?????????????? ??????????????????????????? | | ???????????????? ???###????????????????????? | | ?????????????? ??? ??# ######???????????????? | | ??????????????# ??## ### # #???????????????? | | ?????????????## ## # #% ###?????????????? | | ?????????? %%@l![ ##????????????? | | ?????????? =]![[ ####?????????? | | ?????????? *!/!b/ #?????????? | | ??????????? ## ## ##]### # #?????????? | | ??????????????# ???# #%[### ###???????????? | | ????????????????????# ;###!## = ##???????????? | | ????????????????????#BB#??#/## [ #???????????? | | ????????????????????#BB???#[## ###?##????????? | | ????????????????????# ???#!#### #?? #????????? | | ????????????????????# ####!#### ## ##### #??? | | ????????????????????# ! # ? | | ????????????????????# # ? | | ????????????????????# #### #### ############??? | | ????????????????????# ???## #??# #?? #?????????? | | ?????????????????????????#" #??# #?? #?????????? | | ?????????????????????????#T #??# ### #???####### | | ?????????????????????????#""#??# # ###### ## | | ?????????????????????????####??# | | ???????????????????????????????# | | ??????????????????????????????## ## #### # | | ??????????????????????????????# * # #??# # # | | ??????????????????????????????# ######??## #### | | ??????????????????????????????## #?# #????# !??? | | ???????????????????????????????# #?# #????# !#?? | | ???????????????????????????????# #?# #????# !#?? | +----------------------------------------------------+ Best States ------------- Heat Dissipation 35 Energy Generation 14 Energy Capacity 280 Matter Stores 300 Matter Capacity 300 Sight Range 20 Terrain Scan Density 10 Armor Coverage 225 Resistance: KI 20 Propulsion Shielding 66 Weapon Cycling 30 Evasion (%) 40 Targeting Accuracy 6 Core Analysis 6 Recoil Reduction 3 Defensive Hacking 10 Relay Coupler Types 2 Relay Coupler Value 31 Authchip Count 2 Item Schematics ----------------- Cld. Ion Engine | -9/Materials | Scanalyzed Huge Storage Unit | -9/Materials | Scanalyzed Hrd. Medium Armor Plating | -8/Materials | Scanalyzed Hvy. Rocket Launcher | -8/Materials | Scanalyzed Robot Schematics ------------------ None Fabricated ------------ Nothing Alien Tech Used ----------------- None Achievements -------------- None Challenges ------------ None Game ------ Seed SpreadLayeredActivator Manual? 0 Play Time 01:17:18 Cumulative 1532.0 hours Start 2024.04.20 @ 20:41:01 End 2024.04.20 @ 21:59:17 Sessions 1 Manual Loads 0 Difficulty Rogue Special Mode None Game No. 1059 Rogue 1055 Adventurer 4 Explorer 0 Win Type - Total 191 Types 139/11/14/9/2/1/3/8/4 Lore% 96 Gallery% 99 Achievement% 98 Wizard Run 0 Options --------- Layout 2 ASCII 0 Keyboard 1 Movement Vi Keybinds 0 Fullscreen 0 Font 24/Terminus Map View 59x48 Zoom Use 0% Tactical HUD 1 Map Filters NONE Filters NONE Steam 1 RUN: 16114b96-3318-4977-9178-59ec466a9a93